bitfinex/quotes_ETHUSD_20251124
["timestamp","ask_amount","ask_price","bid_price","bid_amount"]
[1763985050924,0.2739,2810.0,2809.8,0.4857]
[1763985051129,0.2739,2810.0,2809.9,0.4507]
[1763985051130,0.002,2810.0,2809.9,0.4507]
[1763985051317,0.002,2810.0,2809.9,0.9347]
[1763985051654,0.002,2810.0,2809.9,1.0347]
[1763985051853,0.002,2810.0,2809.9,0.9347]
[1763985052043,0.002,2810.0,2809.9,1.0347]
[1763985052353,0.002,2810.0,2809.9,1.73254107]
[1763985052945,0.002,2810.0,2809.9,1.63254107]
[1763985053252,0.002,2810.0,2809.9,1.73254107]
[1763985054560,0.002,2810.0,2809.9,6.75676317]
[1763985058065,0.002,2810.0,2809.9,7.13756317]
[1763985058231,0.002,2810.0,2809.9,7.23756317]
[1763985058737,0.002,2810.0,2809.9,11.70340132]
[1763985058936,0.002,2810.0,2809.9,8.14455581]
[1763985059774,0.002,2810.0,2809.9,8.04455581]
[1763985059979,0.002,2810.0,2809.9,8.14455581]
[1763985064486,0.002,2810.0,2809.9,7.66055581]
[1763985064783,0.002,2810.0,2809.9,8.14455581]
[1763985065008,0.7527,2810.0,2809.9,0.4808]
[1763985065355,0.2739,2810.0,2809.9,0.4808]
[1763985065596,0.002,2810.0,2809.9,0.9315]
[1763985065793,0.002,2810.0,2809.9,1.4155]
[1763985065959,0.002,2810.0,2809.9,1.5155]
[1763985066160,0.002,2810.0,2809.9,2.04555964]
[1763985066787,0.002,2810.0,2809.9,7.10537019]
[1763985066961,0.002,2810.0,2809.9,7.06978174]
[1763985067386,0.0012,2810.0,2809.9,7.06978174]
[1763985068295,0.0012,2810.0,2809.9,10.62862725]
[1763985068510,0.0012,2810.0,2809.9,7.06978174]
[1763985070604,0.0012,2810.0,2809.9,1.56155964]
[1763985070766,0.0012,2810.0,2809.9,0.5808]
[1763985070967,0.2731,2810.0,2809.9,0.5808]
[1763985071202,0.0012,2810.0,2809.9,0.5808]
[1763985071401,0.0012,2810.0,2809.9,0.9315]
[1763985071601,0.2731,2810.0,2809.9,0.7068]
[1763985072503,0.0012,2810.0,2809.9,1.7415]
[1763985073198,0.0012,2810.0,2809.9,6.7657221]
[1763985073403,0.0012,2810.0,2809.9,7.83734471]
[1763985073617,0.0012,2810.0,2809.9,2.77753416]
[1763985073770,0.0012,2810.0,2809.9,1.2575]
[1763985074082,0.0012,2810.0,2809.9,1.7415]
[1763985074814,0.0012,2810.0,2809.9,1.6415]
[1763985075016,0.2731,2810.0,2809.9,0.7068]
[1763985075203,0.7519,2810.0,2809.9,0.7068]
[1763985075518,0.2731,2810.0,2809.9,0.8068]
[1763985076386,0.7519,2810.0,2809.9,0.7068]
[1763985076811,0.7519,2810.0,2809.6,0.001]
[1763985076987,0.1931,2809.7,2809.6,0.001]
[1763985077485,0.6739,2809.7,2809.6,0.001]
[1763985080092,1.079404,2809.7,2809.6,0.001]
[1763985080292,0.6739,2809.7,2809.6,0.001]
[1763985091300,0.6731,2809.7,2809.6,0.001]
[1763985092132,1.078604,2809.7,2809.6,0.001]
[1763985092638,1.68888661,2809.7,2809.6,0.001]
[1763985092942,1.078604,2809.7,2809.6,0.001]
[1763985095532,0.6731,2809.7,2809.6,0.001]
[1763985097332,0.004,2809.7,2809.6,0.001]
[1763985098325,0.1841,2809.9,2809.6,0.001]
[1763985098656,0.6588,2809.9,2809.6,0.001]
[1763985099557,0.1841,2809.9,2809.6,0.001]
[1763985101027,0.0012,2810.0,2809.6,0.001]
[1763985101258,0.0012,2810.0,2809.6,0.4722]
[1763985101564,0.0982,2809.7,2809.6,0.001]
[1763985101966,0.5729,2809.7,2809.6,0.001]
[1763985104541,0.0982,2809.7,2809.6,0.001]
[1763985105662,0.5729,2809.7,2809.6,0.001]
[1763985105965,0.5866,2809.7,2809.6,0.001]
[1763985106769,0.92051915,2809.7,2809.6,0.001]
[1763985107332,0.33391915,2809.7,2809.6,0.001]
[1763985107530,0.60081915,2809.7,2809.6,0.001]
[1763985107729,0.60081915,2809.7,2809.2,0.60137904]
[1763985107730,14.581224,2808.7,2806.9,0.001]
[1763985107933,15.558654,2807.4,2807.1,0.14278906]
[1763985108232,0.0975,2807.5,2806.9,0.001]
[1763985108233,12.533556,2807.0,2806.9,0.001]
[1763985108433,17.81028092,2807.0,2806.9,0.001]
[1763985108773,9.67816992,2806.9,2806.5,0.001]
[1763985108971,9.67816992,2806.9,2806.4,0.001]
[1763985108972,8.72811874,2806.5,2806.4,0.001]
[1763985109267,10.79455163,2806.5,2806.4,0.001]
[1763985109468,10.92023248,2806.5,2806.4,0.001]
[1763985109641,8.81483248,2806.5,2806.4,0.001]
[1763985109843,9.14645925,2806.5,2806.4,0.001]
[1763985110146,5.83949929,2806.5,2806.4,0.001]
[1763985110360,2.22805294,2806.5,2806.4,0.001]
[1763985110554,5.628928,2806.5,2806.4,0.001]
[1763985110733,2.989927,2806.5,2806.4,0.001]
[1763985110940,5.534928,2806.5,2806.4,0.001]
[1763985111257,2.989927,2806.5,2806.4,0.001]
[1763985111464,2.95802536,2806.5,2806.4,0.001]
[1763985111860,5.14946636,2806.5,2806.4,0.001]
[1763985112487,2.95802536,2806.5,2806.4,0.001]
[1763985113007,0.90699264,2806.5,2806.4,0.001]
[1763985113650,0.99649264,2806.5,2806.4,0.001]
[1763985114158,0.90699264,2806.5,2806.4,0.001]
[1763985114985,0.90619264,2806.5,2806.4,0.001]
[1763985116584,0.96089988,2807.4,2806.4,0.9143]
[1763985116792,0.5571,2807.5,2806.6,0.4581]
[1763985116972,0.5571,2807.5,2806.4,0.4562]
[1763985116973,0.18631495,2807.1,2806.4,0.4562]
[1763985117151,0.75756502,2807.4,2806.4,0.4562]
[1763985117353,0.18631567,2807.0,2806.4,0.001]
[1763985117781,0.405504,2807.2,2806.4,0.001]
[1763985117965,0.18631706,2807.0,2806.4,0.001]
[1763985119253,0.18631706,2807.0,2806.4,0.4562]
[1763985121663,0.64591706,2807.0,2806.4,0.001]
[1763985121998,0.0895,2806.5,2806.4,0.001]
[1763985122210,0.405504,2806.8,2806.4,0.001]
[1763985122908,0.4559,2806.9,2806.4,0.001]
[1763985123276,0.18631706,2807.0,2806.5,0.4552]
[1763985123600,0.18631706,2807.0,2806.4,0.001]
[1763985123904,0.18631706,2807.0,2806.4,0.4562]
[1763985124206,0.405504,2807.2,2806.4,0.4562]
[1763985124797,0.405504,2807.3,2806.4,0.4562]
[1763985125307,0.59611616,2807.3,2806.4,0.4562]
[1763985125808,1.35348796,2807.3,2806.4,0.4562]
[1763985126009,0.59611616,2807.3,2806.4,0.4562]
[1763985126208,0.405504,2807.3,2806.4,0.4562]
[1763985126409,1.16285816,2807.3,2806.4,0.4562]
[1763985126605,0.405504,2807.3,2806.4,0.4562]
[1763985126821,0.75757696,2807.7,2807.2,0.6462]
[1763985127003,0.75751739,2807.6,2807.2,0.6462]
[1763985127177,0.405504,2807.7,2807.2,0.6462]
[1763985127380,0.405504,2807.7,2807.2,0.4581]
[1763985127578,0.865104,2807.7,2806.9,0.4552]
[1763985127779,0.75762636,2807.6,2806.9,0.4552]
[1763985128008,1.02922775,2807.6,2806.9,0.4552]
[1763985129498,0.94671475,2808.0,2807.5,0.6462]
[1763985129812,0.75869683,2807.9,2807.6,0.9133]
[1763985130109,0.1862616,2808.1,2807.6,0.9133]
[1763985130405,0.75864996,2808.0,2807.6,0.4581]
[1763985130773,0.75864996,2808.0,2807.6,0.9133]
[1763985130978,0.002,2807.9,2807.6,0.9133]
[1763985131202,0.002,2807.9,2807.6,0.4581]
[1763985131510,0.76064996,2807.9,2807.6,0.4581]
[1763985131713,0.76064996,2807.9,2806.7,0.4552]
[1763985131714,0.0895,2807.7,2806.7,0.4552]
[1763985131878,0.0046,2807.6,2806.8,0.4581]
[1763985132305,0.0046,2807.6,2806.9,0.4552]
[1763985134280,0.76225957,2807.5,2806.9,0.4552]
[1763985134518,0.0046,2807.6,2806.9,0.4552]
[1763985134711,0.76239462,2807.5,2806.9,0.4552]
[1763985134883,1.50381475,2807.8,2806.9,0.4552]
[1763985135215,2.28128338,2807.7,2806.9,0.4552]
[1763985135381,1.09376831,2807.6,2806.9,0.4552]
[1763985135587,0.76239456,2807.5,2806.9,0.4552]
[1763985135808,0.76239456,2807.4,2806.9,0.4552]
[1763985136086,0.94671475,2807.8,2807.6,0.6462]
[1763985136428,0.94671475,2807.8,2807.7,0.4581]
[1763985136586,2.04335007,2807.8,2807.7,0.9133]
[1763985136782,1.60956514,2807.8,2807.1,0.1881]
[1763985137002,0.94671475,2807.5,2807.1,0.1881]
[1763985137208,2.04335007,2807.4,2807.1,0.1881]
[1763985137408,1.09741586,2807.3,2807.1,0.1881]
[1763985137688,1.09741586,2807.2,2807.1,0.1881]
[1763985138109,1.09741586,2807.2,2807.1,0.6462]
[1763985138315,1.09741586,2807.2,2807.1,1.1014]
[1763985138719,1.09661586,2807.2,2807.1,1.1014]
[1763985140008,0.76391789,2807.2,2807.1,1.1014]
[1763985141488,1.09688533,2807.2,2807.1,1.1014]
[1763985142212,0.76391789,2807.2,2807.1,1.1014]
[1763985142516,1.09705225,2807.2,2807.1,1.1014]
[1763985143818,0.76391789,2807.2,2807.1,1.1014]
[1763985144028,1.09709918,2807.2,2807.1,1.1014]
[1763985147100,1.17989918,2807.2,2806.8,0.4522]
[1763985147437,0.0828,2807.2,2806.6,0.4522]
[1763985147822,0.94671475,2807.5,2806.6,0.4522]
[1763985148134,0.002,2807.9,2807.5,0.1]
[1763985148321,0.002,2807.9,2807.8,0.4861]
[1763985149129,0.002,2807.9,2807.8,0.9383]
[1763985150439,0.002,2807.9,2807.4,0.1978]
[1763985150440,0.002,2807.8,2807.4,0.65]
[1763985150803,0.002,2807.8,2807.4,0.1978]
[1763985151005,0.0828,2807.5,2807.1,0.1978]
[1763985151317,0.002,2807.8,2807.1,0.65]
[1763985151513,0.33328922,2807.7,2807.1,0.65]
[1763985151726,0.002,2807.8,2807.1,0.65]
[1763985152048,0.33327943,2807.7,2807.1,0.65]
[1763985152244,0.002,2807.8,2807.1,0.65]
[1763985152399,1.10119717,2807.7,2807.1,0.1978]
[1763985152599,0.002,2807.8,2807.2,0.4522]
[1763985152600,0.33334704,2807.6,2807.2,0.4522]
[1763985152804,0.76785361,2807.7,2807.2,0.4522]
[1763985153006,0.33335481,2807.6,2807.2,0.4522]
[1763985153213,0.002,2807.8,2807.2,0.4522]
[1763985153522,0.33344105,2807.7,2807.2,0.4522]
[1763985153730,0.002,2807.8,2807.2,0.4522]
[1763985154049,0.33342653,2807.7,2807.2,0.4522]
[1763985154210,0.002,2807.8,2807.2,0.4522]
[1763985154415,0.33351699,2807.7,2807.2,0.4522]
[1763985154780,0.002,2807.8,2807.2,0.4522]
[1763985154930,0.33351634,2807.7,2807.2,0.4522]
[1763985155112,0.002,2807.8,2807.2,0.4522]
[1763985155312,0.33360218,2807.7,2807.2,0.4522]
[1763985155512,0.002,2807.8,2807.2,0.4522]
[1763985155731,0.33360154,2807.7,2807.2,0.4522]
[1763985156039,0.002,2807.8,2807.2,0.4522]
[1763985156216,0.33369695,2807.7,2807.2,0.4522]
[1763985156422,0.002,2807.8,2807.7,0.4861]
[1763985156810,0.002,2807.8,2807.7,0.9383]
[1763985158441,0.002,2807.8,2807.7,1.0383]
[1763985159552,0.002,2807.8,2807.7,1.80916232]
[1763985161943,0.002,2807.8,2807.7,2.03516232]
[1763985162371,0.0012,2807.8,2807.7,2.03516232]
[1763985167576,0.0012,2807.8,2807.7,1.93516232]
[1763985168578,0.0012,2807.8,2807.7,2.03516232]
[1763985172783,0.0012,2807.8,2807.7,1.93516232]
[1763985173888,0.0012,2807.8,2807.7,2.03516232]
[1763985176994,0.0012,2807.8,2807.3,0.4515]
[1763985177194,0.089,2807.8,2807.4,0.226]
[1763985177695,0.089,2807.8,2807.4,0.6775]
[1763985180062,0.0012,2807.8,2807.5,0.4515]
[1763985180770,0.0012,2807.8,2807.4,0.326]
[1763985181084,0.0012,2807.8,2807.4,0.5515]
[1763985181996,0.0012,2807.8,2807.7,0.5823]
[1763985182291,0.4677,2807.8,2807.5,0.4515]
[1763985182508,0.5651,2807.8,2807.3,0.6775]
[1763985182707,0.0012,2807.8,2807.7,0.5823]
[1763985183063,0.0012,2807.8,2807.7,0.9338]
[1763985184570,0.0012,2807.8,2807.7,1.0338]
[1763985186066,0.0004,2807.8,2807.7,1.0338]
[1763985187529,0.0004,2807.8,2807.7,0.5823]
[1763985187819,0.0882,2807.8,2807.6,0.227]
[1763985188184,0.0004,2807.8,2807.6,0.227]
[1763985190010,0.0915,2807.7,2807.6,0.227]
[1763985190206,0.0915,2807.7,2807.6,0.001]
[1763985191583,0.5456,2807.7,2807.6,0.001]
[1763985193608,0.0915,2807.7,2807.6,0.001]
[1763985194652,0.5456,2807.7,2807.6,0.001]
[1763985196050,0.0004,2807.8,2807.6,0.4833]
[1763985196229,0.0004,2807.8,2807.6,0.001]
[1763985196432,0.0879,2807.7,2807.6,0.001]
[1763985197556,0.0004,2807.8,2807.6,0.001]
[1763985198269,0.0004,2807.8,2807.7,0.9338]
[1763985198555,0.0004,2807.8,2807.6,0.001]
[1763985198718,0.0004,2807.8,2807.7,0.4823]
[1763985200420,0.0004,2807.8,2807.7,0.81810385]
[1763985205469,0.0831,2807.8,2807.7,0.33580385]
[1763985206775,0.5459,2807.8,2807.6,0.001]
[1763985206977,0.0046,2807.7,2807.6,0.33680385]
[1763985208862,0.80508756,2807.7,2807.6,0.001]
[1763985209882,0.80428756,2807.7,2807.6,0.001]
[1763985213493,0.4703,2807.7,2807.6,0.001]
[1763985214704,0.80407048,2807.7,2807.6,0.001]
[1763985221289,0.33757048,2807.7,2807.6,0.001]
[1763985221606,0.0038,2807.7,2807.6,0.001]
[1763985221776,0.33770732,2807.7,2807.6,0.001]
[1763985222504,0.80340732,2807.7,2807.6,0.001]
[1763985223676,0.0835,2807.7,2807.6,0.001]
[1763985224111,0.41740571,2807.7,2807.6,0.501]
[1763985224503,0.0835,2807.7,2807.6,0.501]
[1763985225020,0.0004,2807.8,2807.6,0.501]
[1763985225203,0.0873,2807.7,2807.6,0.501]
[1763985227788,0.5454,2807.7,2807.6,0.501]
[1763985228894,0.87931646,2807.7,2807.6,0.501]
[1763985229110,1.57125811,2807.7,2807.6,0.501]
[1763985229317,2.34063652,2807.7,2807.6,0.501]
[1763985230122,2.74614052,2807.7,2807.6,0.501]
[1763985230331,3.65313316,2807.7,2807.6,0.501]
[1763985232628,4.61260963,2807.7,2807.6,0.501]
[1763985233840,4.61180963,2807.7,2807.6,0.501]
[1763985234449,3.65233316,2807.7,2807.6,0.501]
[1763985235046,4.61180963,2807.7,2807.6,0.501]
[1763985235948,4.61380963,2807.7,2807.6,0.501]
[1763985236544,9.49904643,2807.7,2807.6,0.501]
[1763985238617,25.93618744,2807.7,2807.6,0.501]
[1763985238817,15.36181789,2807.6,2807.5,0.001]
[1763985239046,18.2130098,2807.6,2807.5,0.001]
[1763985239434,6.7962218,2807.6,2807.5,0.001]
[1763985239753,4.16368855,2807.6,2807.5,0.001]
[1763985241454,2.88159151,2807.6,2807.5,0.001]
[1763985241850,3.84249236,2807.6,2807.5,0.001]
[1763985242210,2.88159151,2807.6,2807.5,0.001]
[1763985242827,3.84249236,2807.6,2807.5,0.001]
[1763985243022,4.91290915,2807.6,2807.5,0.001]
[1763985243550,7.91248089,2807.6,2807.5,0.001]
[1763985244750,3.95165089,2807.6,2807.5,0.001]
[1763985244913,6.73317989,2807.6,2807.5,0.001]
[1763985245716,6.82943789,2807.6,2807.5,0.001]
[1763985246238,3.95165089,2807.6,2807.5,0.001]
[1763985247355,4.91193179,2807.6,2807.5,0.001]
[1763985247521,16.52922874,2807.6,2807.5,0.001]
[1763985247721,20.78761953,2807.6,2807.5,0.001]
[1763985247949,17.18447977,2807.6,2807.5,0.001]
[1763985248148,15.23024177,2807.6,2807.5,0.001]
[1763985248342,13.59542377,2807.6,2807.5,0.001]
[1763985248555,12.37325873,2807.6,2807.5,0.001]
[1763985248851,3.95152673,2807.6,2807.5,0.001]
[1763985249055,5.99298373,2807.6,2807.5,0.001]
[1763985249258,6.16095173,2807.6,2807.5,0.001]
[1763985249562,7.01729273,2807.6,2807.5,0.001]
[1763985250055,6.53545673,2807.6,2807.5,0.001]
[1763985250261,5.95495173,2807.6,2807.5,0.001]
[1763985250564,3.95152673,2807.6,2807.5,0.001]
[1763985250724,4.13784146,2807.6,2807.5,0.001]
[1763985251458,6.77522346,2807.6,2807.5,0.001]
[1763985251664,6.36732346,2807.6,2807.5,0.001]
[1763985251838,3.67664146,2807.6,2807.5,0.001]
[1763985252168,7.95266147,2807.6,2807.5,0.001]
[1763985253879,7.49146147,2807.6,2807.5,0.001]
[1763985254079,7.49346147,2807.6,2807.5,0.001]
[1763985254575,7.95466147,2807.6,2807.5,0.001]
[1763985254882,10.00634147,2807.6,2807.5,0.001]
[1763985255076,9.1527619,2807.6,2807.5,0.001]
[1763985256178,10.43308309,2807.6,2807.5,0.001]
[1763985256580,9.97188309,2807.6,2807.5,0.001]
[1763985257184,8.6915619,2807.6,2807.5,0.001]
[1763985257479,8.6907619,2807.6,2807.5,0.001]
[1763985257879,9.97108309,2807.6,2807.5,0.001]
[1763985258044,8.6907619,2807.6,2807.5,0.001]
[1763985258245,9.97108309,2807.6,2807.5,0.001]
[1763985259354,10.43228309,2807.6,2807.5,0.001]
[1763985259673,13.7917299,2807.6,2807.5,0.001]
[1763985259874,11.3843049,2807.6,2807.5,0.001]
[1763985260278,9.1519619,2807.6,2807.5,0.001]
[1763985261850,3.8055251,2807.6,2807.5,0.001]
[1763985262075,9.97411694,2807.6,2807.5,0.001]
[1763985262977,8.6907619,2807.6,2807.5,0.001]
[1763985263174,9.1556619,2807.6,2807.5,0.001]
[1763985263694,14.25914612,2807.6,2807.5,0.001]
[1763985266327,40.8015017,2807.6,2807.5,0.001]
[1763985266513,13.80014564,2807.5,2807.4,0.001]
[1763985266823,8.73804817,2807.5,2807.4,0.001]
[1763985267392,15.02829897,2807.5,2807.4,0.001]
[1763985267892,11.48787364,2807.4,2807.3,0.001]
[1763985268192,13.70071564,2807.1,2805.9,0.4782]
[1763985268405,11.68929974,2807.1,2806.3,0.4782]
[1763985268596,7.77144674,2807.1,2806.5,0.4792]
[1763985268796,10.16083074,2807.1,2806.5,0.4792]
[1763985269394,12.8760564,2807.1,2806.5,0.4792]
[1763985269593,14.66562063,2807.1,2806.5,0.4792]
[1763985270111,13.87528263,2807.1,2806.5,0.4792]
[1763985270845,11.02099863,2807.1,2806.5,0.4792]
[1763985270988,4.21087417,2807.1,2806.5,0.001]
[1763985271193,4.21087417,2807.1,2806.7,0.001]
[1763985271628,6.74878817,2807.1,2806.7,0.001]
[1763985271824,4.21087417,2807.1,2806.7,0.001]
[1763985272028,6.46038317,2807.1,2806.7,0.001]
[1763985272210,9.09011097,2807.1,2807.0,0.9547]
[1763985272413,5.0818631,2807.1,2807.0,0.9547]
[1763985272613,5.4873671,2807.1,2807.0,0.9547]
[1763985272828,4.20487417,2807.1,2807.0,0.9547]
[1763985273229,4.20487417,2807.1,2807.0,0.4765]
[1763985273230,2.41530994,2807.1,2807.0,0.4765]
[1763985277833,2.49800994,2807.1,2807.0,0.001]
[1763985278133,7.80328687,2807.1,2807.0,0.001]
[1763985278998,6.92513887,2807.1,2807.0,0.001]
[1763985280306,8.3448452,2807.1,2807.0,0.001]
[1763985281122,8.5303867,2807.1,2807.0,0.001]
[1763985283243,20.4541767,2807.1,2807.0,0.001]
[1763985283449,17.01967643,2807.1,2807.0,0.001]
[1763985283613,15.09478877,2807.1,2807.0,0.001]
[1763985284144,13.67053177,2807.1,2807.0,0.001]
[1763985284346,15.56424777,2807.1,2807.0,0.001]
[1763985284559,8.2913721,2807.1,2807.0,0.001]
[1763985284775,10.9119029,2807.1,2807.0,0.001]
[1763985285118,10.8292029,2807.1,2807.0,0.001]
[1763985285317,10.9157029,2807.1,2807.0,0.001]
[1763985285518,8.99229457,2807.1,2807.0,0.001]
[1763985285939,8.90579457,2807.1,2807.0,0.001]
[1763985286327,8.90579457,2807.1,2807.0,0.4765]
[1763985286654,8.90579457,2807.1,2807.0,0.001]
[1763985286655,8.9062627,2807.1,2807.0,0.001]
[1763985286817,8.9897627,2807.1,2807.0,0.001]
[1763985287312,10.82967103,2807.1,2807.0,0.001]
[1763985287713,10.83167103,2807.1,2807.0,0.001]
[1763985290130,10.92527103,2807.1,2807.0,0.001]
[1763985290331,14.18114903,2807.1,2807.0,0.001]
[1763985290842,14.63224903,2807.1,2807.0,0.001]
[1763985291273,15.85024903,2807.1,2807.0,0.001]
[1763985291574,13.9268407,2807.1,2807.0,0.001]
[1763985292288,14.6132357,2807.1,2807.0,0.001]
[1763985293360,12.1334737,2807.1,2807.0,0.4804]
[1763985293559,12.2306737,2807.1,2807.0,0.001]
[1763985293942,12.6781737,2807.1,2807.0,0.001]
[1763985294367,4.81924264,2807.0,2806.8,0.001]
[1763985294557,10.23287716,2807.0,2806.8,0.001]
[1763985295271,8.30766828,2807.0,2806.8,0.001]
[1763985296588,11.05493128,2807.0,2806.8,0.001]
[1763985296769,7.84276828,2807.0,2806.8,0.001]
[1763985296974,6.86066428,2807.0,2806.8,0.001]
[1763985297302,6.57916428,2807.0,2806.8,0.001]
[1763985297580,6.83296528,2807.0,2806.8,0.001]
[1763985297779,4.33602228,2807.0,2806.8,0.001]
[1763985297982,4.33152228,2807.0,2806.9,0.4804]
[1763985298285,7.76746528,2807.0,2806.9,0.9616]
[1763985298590,4.33152228,2807.0,2806.9,0.9616]
[1763985298883,4.44907907,2807.0,2806.9,0.9616]
[1763985299071,2.41577807,2807.0,2806.9,0.9616]
[1763985299471,2.41577807,2807.0,2806.9,0.4804]
[1763985299863,4.43001307,2807.0,2806.9,0.4804]
[1763985300393,8.43109807,2807.0,2806.9,0.001]
[1763985300550,9.09082209,2807.0,2806.9,0.001]
[1763985301084,4.12200009,2807.0,2806.9,0.001]
[1763985301287,5.96447832,2807.0,2806.9,0.4804]
[1763985301491,3.69972938,2807.0,2806.9,0.4804]
[1763985301655,2.41577807,2807.0,2806.9,0.4804]
[1763985302284,2.41577807,2807.0,2806.9,0.9616]
[1763985302485,2.41577807,2807.0,2806.9,0.4804]
[1763985302790,2.41577807,2807.0,2806.9,0.9616]
[1763985305114,2.41497807,2807.0,2806.9,0.9616]
[1763985307619,3.69927089,2807.0,2806.9,0.9616]
[1763985308393,2.41497807,2807.0,2806.9,0.9616]
[1763985308591,2.01027407,2807.0,2806.9,0.9616]
[1763985309289,2.97326313,2807.0,2806.9,0.9616]
[1763985309520,1.10328143,2807.0,2806.9,0.9616]
[1763985309813,0.33390302,2807.0,2806.9,0.9616]
[1763985311400,1.24089566,2807.0,2806.9,0.9616]
[1763985311600,2.0105018,2807.0,2806.9,0.9616]
[1763985311934,2.0105018,2807.0,2806.9,0.4804]
[1763985311935,3.21757025,2807.0,2806.9,0.4804]
[1763985312232,4.18055931,2807.0,2806.9,0.4804]
[1763985314023,4.18055931,2807.0,2806.9,0.9616]
[1763985316519,1.10350916,2807.0,2806.9,0.9616]
[1763985317205,0.33390302,2807.0,2806.9,0.9616]
[1763985321509,0.33590302,2807.0,2806.9,0.9616]
[1763985325654,0.002,2807.0,2806.9,0.9616]
[1763985326007,0.33552643,2807.0,2806.9,0.956]
[1763985327839,0.33552643,2807.0,2806.9,0.4804]
[1763985328356,0.33552643,2807.0,2806.9,0.956]
[1763985328855,0.33472643,2807.0,2806.9,0.956]
[1763985329458,0.33472643,2807.0,2806.9,0.95156707]
[1763985334254,0.0012,2807.0,2806.9,0.95156707]
[1763985339029,0.33507845,2807.0,2806.9,0.95256707]
[1763985339230,0.33507845,2807.0,2806.9,0.47696707]
[1763985339571,0.33507845,2807.0,2806.9,0.95256707]
[1763985340077,0.33507845,2807.0,2806.9,0.47696707]
[1763985340232,0.33507845,2807.0,2806.9,0.001]
[1763985342804,0.33507845,2807.0,2806.9,0.9451]
[1763985346994,0.33507845,2807.0,2806.9,0.4695]
[1763985347192,1.33737109,2807.0,2806.9,0.001]
[1763985347505,2.10797281,2807.0,2806.9,0.001]
[1763985347704,2.01267281,2807.0,2806.9,0.001]
[1763985348305,2.81345545,2807.0,2806.9,0.001]
[1763985349890,2.81345545,2807.0,2806.9,0.4554]
[1763985349891,2.71815545,2807.0,2806.9,0.4554]
[1763985352613,2.01187281,2807.0,2806.9,0.4554]
[1763985353076,1.10488017,2807.0,2806.9,0.9468]
[1763985354773,1.10488017,2807.0,2806.9,0.4554]
[1763985355789,7.13292643,2807.0,2806.9,0.001]
[1763985357618,2.01187281,2807.0,2806.9,0.9468]
[1763985358622,2.01187281,2807.0,2806.9,0.4554]
[1763985359489,2.09277281,2807.0,2806.9,0.001]
[1763985359987,2.01187281,2807.0,2806.9,0.4554]
[1763985360188,2.01187281,2807.0,2806.9,0.9468]
[1763985362201,1.24127109,2807.0,2806.9,0.9468]
[1763985364236,0.33427845,2807.0,2806.9,0.9468]
[1763985372050,0.33476442,2807.0,2806.9,0.9468]
[1763985376023,0.33476442,2807.0,2806.9,1.71926645]
[1763985376224,0.33396442,2807.0,2806.9,1.71926645]
[1763985376619,0.33396442,2807.0,2806.9,1.22786645]
[1763985377151,0.33396442,2807.0,2806.9,1.71926645]
[1763985384241,0.002,2807.1,2806.9,1.71926645]
[1763985384435,0.002,2807.1,2807.0,0.4544]
[1763985385458,0.002,2807.1,2807.0,0.9083]
[1763985386665,0.002,2807.1,2807.0,0.94392522]
[1763985387074,0.002,2807.1,2807.0,1.85222522]
[1763985387261,0.002,2807.1,2807.0,2.03764774]
[1763985387637,0.002,2807.1,2807.0,2.00202252]
[1763985389270,0.002,2807.1,2807.0,1.54812252]
[1763985389478,0.002,2807.1,2807.0,2.00202252]
[1763985389997,0.002,2807.1,2807.0,1.54812252]
[1763985390140,0.33629103,2807.1,2807.0,1.54812252]
[1763985390340,0.33629103,2807.1,2807.0,2.00202252]
[1763985393287,0.33629103,2807.1,2807.0,1.8166]
[1763985396186,0.002,2807.1,2807.0,1.8166]
[1763985396572,0.002,2807.1,2807.0,1.85222522]
[1763985396890,0.002,2807.1,2807.0,1.8166]
[1763985397195,0.002,2807.1,2807.0,1.85222522]
[1763985397391,0.002,2807.1,2807.0,2.52644615]
[1763985397995,0.002,2807.1,2807.0,2.49082093]
[1763985400196,0.0012,2807.1,2807.0,7.47696557]
[1763985400979,0.0012,2807.1,2807.0,2.59082093]
[1763985401190,0.0012,2807.1,2807.0,2.62644615]
[1763985404574,0.0012,2807.1,2807.0,2.59082093]
[1763985405083,0.0012,2807.1,2807.0,2.59182093]
[1763985406097,0.0012,2807.1,2807.0,2.62744615]
[1763985406296,0.0012,2807.1,2807.0,7.41359079]
[1763985406497,0.0012,2807.1,2807.0,7.47796557]
[1763985406827,0.0012,2807.1,2807.0,7.88346957]
[1763985410025,0.002,2807.3,2807.0,7.42956957]
[1763985410309,0.002,2808.2,2807.0,7.42956957]
[1763985410310,0.002,2808.3,2808.2,0.505504]
[1763985410520,0.002,2808.3,2808.2,0.5929]
[1763985410821,0.002,2808.3,2808.2,0.7189]
[1763985411126,0.002,2808.3,2808.2,1.1903]
[1763985411309,0.002,2808.3,2808.2,1.33301977]
[1763985412887,0.002,2808.3,2808.2,0.63561977]
[1763985413088,0.0912,2808.3,2808.2,0.14271977]
[1763985413506,0.5474,2808.3,2808.2,0.14271977]
[1763985414009,5.9772991,2808.3,2808.2,0.14271977]
[1763985414389,6.88429174,2808.3,2808.2,0.14271977]
[1763985414589,7.21713455,2808.3,2808.2,0.14271977]
[1763985414805,2.33098991,2808.3,2808.2,0.14271977]
[1763985420957,1.78723545,2808.3,2808.2,0.14271977]
[1763985421326,0.90699264,2808.2,2807.3,0.1813]
[1763985421522,0.90699264,2808.2,2807.0,0.001]
[1763985421523,0.0847,2807.4,2807.0,0.001]
[1763985421736,0.4599,2808.1,2807.1,0.1813]